fUST/lending_fUST_20250619
["ID","MTS","AMOUNT","RATE_DAILY","PERIOD"]
[366474922,1750277443240,-543.96,0.00022465,6]
[366474923,1750277443249,-460.0,0.00022465,6]
[366474924,1750277443259,-460.0,0.00022465,6]
[366474925,1750277443268,-460.0,0.00022465,6]
[366474926,1750277443277,-582.24190177,0.00022465,6]
[366474927,1750277443286,-3256.24,0.00022465,6]
[366474928,1750277443296,-1069.05,0.00022465,6]
[366474929,1750277443306,-400.0,0.00022465,6]
[366474930,1750277443316,-345.73335552,0.00022465,5]
[366474932,1750277443432,-410.0,0.00022465,6]
[366474933,1750277443443,-2548.56,0.00022465,6]
[366474934,1750277443453,-563.58,0.00022465,6]
[366474935,1750277443462,-460.0,0.00022465,6]
[366474936,1750277443471,-460.0,0.00022465,6]
[366474937,1750277443481,-460.0,0.00022465,6]
[366474938,1750277443491,-460.0,0.00022465,6]
[366474939,1750277443501,-300.0,0.00022465,6]
[366474940,1750277443510,-460.0,0.00022465,6]
[366474941,1750277443520,-460.0,0.00022465,6]
[366474942,1750277443530,-460.0,0.00022465,6]
[366474943,1750277443540,-460.0,0.00022465,6]
[366474944,1750277443549,-430.0,0.00022465,6]
[366474945,1750277443558,-294.78806762,0.00022465,6]
[366474946,1750277443567,-460.0,0.00022465,6]
[366474947,1750277443577,-1472.75,0.00022465,6]
[366474948,1750277443587,-388.17389586,0.00022465,6]
[366474949,1750277443596,-1218.86,0.00022465,6]
[366474950,1750277443606,-440.0,0.00022465,6]
[366474951,1750277443615,-460.0,0.00022465,6]
[366474952,1750277443625,-460.0,0.00022465,6]
[366474953,1750277443634,-500.0,0.00022465,6]
[366474954,1750277443644,-280.0,0.00022465,6]
[366474955,1750277443654,-460.0,0.00022465,6]
[366474956,1750277443664,-400.0,0.00022465,6]
[366474957,1750277443673,-460.0,0.00022465,6]
[366474958,1750277443683,-460.0,0.00022465,6]
[366474959,1750277443692,-460.0,0.00022465,6]
[366474960,1750277443702,-460.0,0.00022465,6]
[366474961,1750277443712,-261.59129775,0.00022465,6]
[366474962,1750277443721,-460.0,0.00022465,6]
[366474963,1750277443730,-460.0,0.00022465,6]
[366474964,1750277443739,-515.5,0.00022465,6]
[366474965,1750277443748,-460.0,0.00022465,6]
[366474966,1750277443757,-460.0,0.00022465,6]
[366474967,1750277443768,-460.0,0.00022465,6]
[366474968,1750277443780,-460.0,0.00022465,6]
[366474969,1750277443789,-939.38,0.00022465,6]
[366474970,1750277443799,-440.0,0.00022465,6]
[366474971,1750277443808,-460.0,0.00022465,6]
[366474972,1750277443819,-460.0,0.00022465,6]
[366474973,1750277443828,-460.0,0.00022465,6]
[366474974,1750277443837,-383.83483562,0.00022465,6]
[366474975,1750277443848,-406.72281295,0.00022465,6]
[366474976,1750277443857,-460.0,0.00022465,6]
[366474977,1750277443866,-460.0,0.00022465,6]
[366474978,1750277443876,-460.0,0.00022465,6]
[366474979,1750277443885,-1762.07,0.00022465,6]
[366474980,1750277443895,-460.0,0.00022465,6]
[366474981,1750277443904,-460.0,0.00022465,6]
[366474982,1750277443913,-420.0,0.00022465,6]
[366474983,1750277443922,-536.63,0.00022465,6]
[366474984,1750277443932,-1261.69,0.00022465,6]
[366474985,1750277443941,-460.0,0.00022465,6]
[366474986,1750277443951,-207.19952512,0.00022465,6]
[366474987,1750277443961,-460.0,0.00022465,6]
[366474988,1750277443970,-1399.88,0.00022465,6]
[366474989,1750277443980,-877.75,0.00022465,6]
[366474990,1750277443989,-650.18,0.00022465,6]
[366474991,1750277443999,-460.0,0.00022465,6]
[366474992,1750277444009,-460.0,0.00022465,6]
[366474993,1750277444019,-291.37779626,0.00022465,6]
[366474994,1750277444028,-460.0,0.00022465,6]
[366474995,1750277444038,-1574.72,0.00022465,6]
[366474996,1750277444047,-502.38,0.00022465,6]
[366474997,1750277444056,-460.0,0.00022465,6]
[366474998,1750277444066,-460.0,0.00022465,6]
[366474999,1750277444075,-430.0,0.00022465,6]
[366475000,1750277444085,-460.0,0.00022465,6]
[366475001,1750277444095,-4445.37,0.00022465,6]
[366475002,1750277444106,-460.0,0.00022465,6]
[366475003,1750277444116,-513.03,0.00022465,6]
[366475004,1750277444126,-1301.27,0.00022465,6]
[366475005,1750277444135,-440.0,0.00022465,6]
[366475006,1750277444144,-184.82616284,0.00022465,6]
[366475007,1750277444154,-709.25,0.00022465,6]
[366475008,1750277444163,-460.0,0.00022465,6]
[366475009,1750277444173,-460.0,0.00022465,6]
[366475010,1750277444183,-2096.89,0.00022465,6]
[366475011,1750277444193,-500.0,0.00022473,2]
[366475012,1750277444203,-501.26660304,0.00022473,2]
[366475013,1750277444212,-500.0,0.00022473,2]
[366475014,1750277444222,-500.0,0.00022473,2]
[366475015,1750277444231,-516.47411252,0.00022473,2]
[366475016,1750277444240,-500.0,0.00022473,2]
[366475017,1750277444249,-306.27553398,0.00022473,2]
[366475018,1750277444258,-500.0,0.00022473,2]
[366475019,1750277444267,-258.8294469,0.00022473,2]
[366475020,1750277444277,-500.0,0.00022473,2]
[366475021,1750277444286,-500.0,0.00022473,2]
[366475022,1750277444295,-500.0,0.00022473,2]
[366475023,1750277444305,-500.0,0.00022473,2]
[366475024,1750277444315,-516.2677161,0.00022473,2]
[366475025,1750277444324,-1000.0,0.00022521,2]
[366475026,1750277444333,-500.0,0.00022521,2]
[366475027,1750277444343,-971.47148591,0.00022521,2]
[366475028,1750277444353,-207.4,0.00022671,2]
[366475029,1750277444362,-416.71543865,0.00022671,2]
[366475030,1750277444372,-3456.20640764,0.0002268,2]
[366475031,1750277444381,-500.0,0.00022721,2]
[366475032,1750277444391,-500.37286074,0.00022721,2]
[366475033,1750277444401,-370.47733634,0.00022739,6]
[366475034,1750277444411,-460.0,0.00022739,6]
[366475035,1750277444420,-460.0,0.00022739,6]
[366475036,1750277444431,-460.0,0.00022739,6]
[366475037,1750277444440,-460.0,0.00022739,6]
[366475038,1750277444452,-460.0,0.00022739,6]
[366475039,1750277444462,-319.99840326,0.00022739,6]
[366475040,1750277444472,-400.0,0.00022739,6]
[366475041,1750277444481,-460.0,0.00022739,6]
[366475042,1750277444491,-340.0,0.00022739,6]
[366475043,1750277444501,-460.0,0.00022739,6]
[366475044,1750277444511,-260.30721378,0.00022739,6]
[366475045,1750277444522,-460.0,0.00022739,6]
[366475046,1750277444531,-500.0,0.00022739,6]
[366475047,1750277444541,-460.4,0.00022739,6]
[366475048,1750277444551,-460.0,0.00022739,6]
[366475049,1750277444561,-460.0,0.00022739,6]
[366475050,1750277444570,-590.83,0.00022739,6]
[366475051,1750277444580,-172.73789887,0.00022739,6]
[366475052,1750277444589,-340.0,0.00022739,6]
[366475053,1750277444598,-400.0,0.00022739,6]
[366475054,1750277444607,-460.0,0.00022739,6]
[366475055,1750277444617,-460.0,0.00022739,6]
[366475056,1750277444627,-240.0,0.00022739,6]
[366475057,1750277444636,-460.0,0.00022739,6]
[366475058,1750277444646,-460.0,0.00022739,6]
[366475059,1750277444655,-577.22,0.00022739,6]
[366475060,1750277444665,-460.0,0.00022739,6]
[366475061,1750277444674,-460.0,0.00022739,6]
[366475062,1750277444683,-460.0,0.00022739,6]
[366475063,1750277444693,-460.0,0.00022739,6]
[366475064,1750277444704,-460.0,0.00022739,6]
[366475065,1750277444713,-557.60360734,0.00022739,6]
[366475066,1750277444723,-360.0,0.00022739,6]
[366475067,1750277444732,-440.0,0.00022739,6]
[366475068,1750277444742,-460.0,0.00022739,6]
[366475069,1750277444751,-460.0,0.00022739,6]
[366475070,1750277444761,-440.0,0.00022739,6]
[366475071,1750277444773,-460.0,0.00022739,6]
[366475072,1750277444782,-460.0,0.00022739,6]
[366475073,1750277444791,-460.0,0.00022739,6]
[366475074,1750277444801,-1090.62,0.00022739,6]
[366475075,1750277444811,-420.0,0.00022739,6]
[366475076,1750277444821,-2521.93,0.00022739,6]
[366475077,1750277444831,-370.09483473,0.00022739,6]
[366475078,1750277444840,-460.0,0.00022739,6]
[366475079,1750277444849,-400.0,0.00022739,6]
[366475080,1750277444860,-420.0,0.00022739,6]
[366475081,1750277444869,-3034.5,0.00022739,6]
[366475082,1750277444878,-390.0,0.00022739,6]
[366475083,1750277444888,-460.0,0.00022739,6]
[366475084,1750277444897,-460.0,0.00022739,6]
[366475085,1750277444906,-460.0,0.00022739,6]
[366475086,1750277444916,-440.0,0.00022739,6]
[366475087,1750277444925,-460.0,0.00022739,6]
[366475088,1750277444934,-460.0,0.00022739,6]
[366475089,1750277444943,-768.84,0.00022739,6]
[366475090,1750277444954,-460.0,0.00022739,6]
[366475091,1750277444963,-460.0,0.00022739,6]
[366475092,1750277444972,-460.0,0.00022739,6]
[366475093,1750277444981,-460.0,0.00022739,6]
[366475094,1750277444990,-460.0,0.00022739,6]
[366475095,1750277444999,-1836.8,0.00022739,6]
[366475096,1750277445009,-543.96,0.00022739,6]
[366475097,1750277445018,-440.0,0.00022739,6]
[366475098,1750277445027,-460.0,0.00022739,6]
[366475099,1750277445036,-460.0,0.00022739,6]
[366475100,1750277445045,-3256.24,0.00022739,6]
[366475101,1750277445055,-1069.05,0.00022739,6]
[366475102,1750277445064,-563.58,0.00022739,6]
[366475103,1750277445073,-2548.56,0.00022739,6]
[366475104,1750277445082,-310.0,0.00022739,6]
[366475105,1750277445091,-460.0,0.00022739,6]
[366475106,1750277445100,-460.0,0.00022739,6]
[366475107,1750277445109,-214.0220856,0.00022739,6]
[366475108,1750277445119,-440.0,0.00022739,6]
[366475109,1750277445128,-460.0,0.00022739,6]
[366475110,1750277445137,-425.31775036,0.00022739,6]
[366475111,1750277445146,-370.0,0.00022739,6]
[366475112,1750277445156,-460.0,0.00022739,6]
[366475113,1750277445165,-1472.75,0.00022739,6]
[366475114,1750277445175,-1218.86,0.00022739,6]
[366475115,1750277445184,-460.0,0.00022739,6]
[366475116,1750277445194,-460.0,0.00022739,6]
[366475117,1750277445204,-500.0,0.00022739,6]
[366475118,1750277445213,-460.0,0.00022739,6]
[366475119,1750277445223,-460.0,0.00022739,6]
[366475120,1750277445232,-460.0,0.00022739,6]
[366475121,1750277445241,-460.0,0.00022739,6]
[366475122,1750277445251,-440.0,0.00022739,6]
[366475123,1750277445261,-368.78421748,0.00022739,6]
[366475124,1750277445388,-91.21578252,0.00022739,6]
[366475125,1750277445398,-410.0,0.00022739,6]
[366475126,1750277445408,-515.5,0.00022739,6]
[366475127,1750277445418,-460.0,0.00022739,6]
[366475128,1750277445428,-460.0,0.00022739,6]
[366475129,1750277445438,-440.0,0.00022739,6]
[366475130,1750277445448,-460.0,0.00022739,6]
[366475131,1750277445458,-939.38,0.00022739,6]
[366475133,1750277445467,-460.0,0.00022739,6]
[366475134,1750277445476,-460.0,0.00022739,6]
[366475135,1750277445486,-460.0,0.00022739,6]
[366475136,1750277445495,-460.0,0.00022739,6]
[366475137,1750277445505,-460.0,0.00022739,6]
[366475138,1750277445514,-460.0,0.00022739,6]
[366475139,1750277445524,-1762.07,0.00022739,6]
[366475140,1750277445534,-603.22,0.00022739,6]
[366475141,1750277445633,-460.0,0.00022739,6]
[366475142,1750277445657,-536.63,0.00022739,6]
[366475143,1750277445668,-1261.69,0.00022739,6]
[366475144,1750277445678,-460.0,0.00022739,6]
[366475145,1750277445688,-460.0,0.00022739,6]
[366475147,1750277445698,-1399.88,0.00022739,6]
[366475149,1750277445708,-877.75,0.00022739,6]
[366475150,1750277445718,-650.18,0.00022739,6]
[366475152,1750277445728,-460.0,0.00022739,6]
[366475153,1750277445738,-460.0,0.00022739,6]
[366475154,1750277445747,-460.0,0.00022739,6]
[366475155,1750277445757,-1574.72,0.00022739,6]
[366475156,1750277445768,-502.38,0.00022739,6]
[366475157,1750277445781,-460.0,0.00022739,6]
[366475158,1750277445791,-460.0,0.00022739,6]
[366475159,1750277445800,-460.0,0.00022739,6]
[366475160,1750277445810,-3037.95413476,0.00022739,6]
[366475162,1750277446689,-181.54792187,0.00019839,2]
[366475163,1750277446700,-214.53694107,0.00019839,2]
[366475164,1750277446710,-500.0,0.00019839,2]
[366475165,1750277446721,-266.92241529,0.00019839,2]
[366475166,1750277446732,-500.0,0.00019839,2]
[366475167,1750277446742,-500.0,0.00019839,2]
[366475168,1750277446752,-500.0,0.00019839,2]
[366475169,1750277446761,-500.0,0.00019839,2]
[366475170,1750277446775,-500.0,0.00019839,2]
[366475171,1750277446785,-500.0,0.00019839,2]
[366475172,1750277446794,-500.0,0.00019839,2]
[366475173,1750277446803,-500.0,0.00019839,2]
[366475174,1750277446814,-500.0,0.00019839,2]
[366475175,1750277446823,-500.0,0.00019839,2]
[366475176,1750277446833,-500.0,0.00019839,2]
[366475177,1750277446843,-596.36576443,0.00019839,2]
[366475178,1750277446853,-500.0,0.00019839,2]
[366475179,1750277446862,-500.0,0.00019839,2]
[366475180,1750277446872,-500.0,0.00019839,2]
[366475181,1750277446881,-190.38976802,0.00019839,2]
[366475182,1750277446891,-500.0,0.00019839,2]
[366475183,1750277446901,-500.0,0.00019839,2]
[366475184,1750277446909,-500.0,0.00019839,2]
[366475185,1750277446919,-500.0,0.00019839,2]
[366475186,1750277446928,-500.0,0.00019839,2]
[366475187,1750277446938,-500.0,0.00019839,2]
[366475188,1750277446947,-500.0,0.00019839,2]
[366475189,1750277446958,-500.0,0.00019839,2]
[366475190,1750277446967,-500.0,0.00019839,2]
[366475191,1750277446977,-500.0,0.00019839,2]
[366475192,1750277446986,-500.0,0.00019839,2]
[366475193,1750277446995,-500.0,0.00019839,2]
[366475194,1750277447005,-500.0,0.00019839,2]
[366475195,1750277447015,-500.0,0.00019839,2]
[366475196,1750277447024,-500.0,0.00019839,2]
[366475197,1750277447033,-500.0,0.00019839,2]
[366475198,1750277447043,-500.0,0.00019839,2]
[366475199,1750277447053,-500.0,0.00019839,2]
[366475200,1750277447062,-500.0,0.00019839,2]
[366475201,1750277447071,-500.0,0.00019839,2]
[366475202,1750277447080,-500.0,0.00019839,2]
[366475203,1750277447089,-500.0,0.00019839,2]
[366475204,1750277447098,-500.0,0.00019839,2]
[366475205,1750277447107,-500.0,0.00019839,2]
[366475206,1750277447117,-500.0,0.00019839,2]
[366475207,1750277447126,-500.0,0.00019839,2]
[366475208,1750277447135,-500.0,0.00019839,2]
[366475209,1750277447145,-169.05779081,0.00019839,2]
[366475210,1750277447154,-500.0,0.00019839,2]
[366475211,1750277447164,-500.0,0.00019839,2]
[366475212,1750277447173,-618.01676489,0.00019839,2]
[366475213,1750277447182,-500.0,0.00019839,2]
[366475214,1750277447192,-500.0,0.00019839,2]
[366475215,1750277447202,-500.0,0.00019839,2]
[366475216,1750277447212,-500.0,0.00019839,2]
[366475217,1750277447222,-500.0,0.00019839,2]
[366475218,1750277447232,-500.0,0.00019839,2]
[366475219,1750277447241,-500.0,0.00019839,2]
[366475220,1750277447251,-500.0,0.00019839,2]
[366475221,1750277447261,-500.0,0.00019839,2]
[366475222,1750277447271,-550.09923833,0.00019839,2]
[366475223,1750277447281,-500.0,0.00019839,2]
[366475224,1750277447290,-500.0,0.00019839,2]
[366475225,1750277447300,-500.0,0.00019839,2]
[366475226,1750277447310,-500.0,0.00019839,2]
[366475227,1750277447319,-500.0,0.00019839,2]
[366475228,1750277447329,-460.0,0.00021917,6]
[366475229,1750277447340,-460.0,0.00021917,6]
[366475230,1750277447351,-460.0,0.00021917,6]
[366475231,1750277447361,-460.0,0.00021917,6]
[366475232,1750277447370,-3156.43,0.00022191,6]
[366475233,1750277447381,-460.0,0.00022191,6]
[366475234,1750277447391,-460.0,0.00022191,6]
[366475235,1750277447400,-460.0,0.00022191,6]
[366475236,1750277447410,-460.0,0.00022191,6]
[366475237,1750277447419,-3156.43,0.00022465,6]
[366475238,1750277447428,-460.0,0.00022465,6]
[366475239,1750277447437,-460.0,0.00022465,6]
[366475240,1750277447447,-460.0,0.00022465,6]
[366475241,1750277447457,-1407.41586524,0.00022739,6]
[366475242,1750277447467,-410.0,0.00022739,6]
[366475243,1750277447476,-513.03,0.00022739,6]
[366475244,1750277447485,-1301.27,0.00022739,6]
[366475245,1750277447495,-709.25,0.00022739,6]
[366475246,1750277447505,-460.0,0.00022739,6]
[366475247,1750277447515,-460.0,0.00022739,6]
[366475248,1750277447524,-2068.13898564,0.00022739,6]
[366475249,1750277447536,-28.75101436,0.00022739,6]
[366475250,1750277447547,-3156.43,0.00022739,6]
[366475251,1750277447557,-502.68,0.00022739,6]
[366475252,1750277447566,-460.0,0.00022739,6]
[366475253,1750277447576,-168.0,0.00022764,2]
[366475254,1750277447586,-303.72413126,0.00022857,2]
[366475255,1750277447596,-500.0,0.00022893,4]
[366475256,1750277447605,-429.17624786,0.00022949,2]
[366475257,1750277447614,-3456.20640764,0.00022968,2]
[366475258,1750277447623,-229.98435572,0.00023,3]
[366475259,1750277447633,-160.0,0.00023,3]
[366475260,1750277447642,-424.70586748,0.00023,3]
[366475261,1750277447652,-460.0,0.00023013,6]
[366475262,1750277447662,-460.0,0.00023013,6]
[366475263,1750277447672,-460.0,0.00023013,6]
[366475264,1750277447681,-460.0,0.00023013,6]
[366475265,1750277447691,-460.0,0.00023013,6]
[366475266,1750277447701,-370.0,0.00023013,6]
[366475267,1750277447711,-501.00000054,0.00023013,6]
[366475268,1750277447721,-460.4,0.00023013,6]
[366475269,1750277447826,-460.0,0.00023013,6]
[366475270,1750277447835,-460.0,0.00023013,6]
[366475271,1750277447845,-590.83,0.00023013,6]
[366475272,1750277447855,-460.0,0.00023013,6]
[366475273,1750277447865,-400.0,0.00023013,6]
[366475274,1750277447874,-460.0,0.00023013,6]
[366475275,1750277447883,-577.22,0.00023013,6]
[366475276,1750277447892,-400.0,0.00023013,6]
[366475277,1750277447901,-460.0,0.00023013,6]
[366475278,1750277447910,-460.0,0.00023013,6]
[366475279,1750277447919,-460.0,0.00023013,6]
[366475280,1750277447928,-460.0,0.00023013,6]
[366475281,1750277447937,-460.0,0.00023013,6]
[366475282,1750277447947,-460.0,0.00023013,6]
[366475283,1750277447957,-460.0,0.00023013,6]
[366475284,1750277447967,-421.49316756,0.00023013,6]
[366475285,1750277447976,-440.0,0.00023013,6]
[366475286,1750277447985,-3034.5,0.00023013,6]
[366475287,1750277447994,-460.0,0.00023013,6]
[366475288,1750277448004,-430.0,0.00023013,6]
[366475289,1750277448013,-460.0,0.00023013,6]
[366475290,1750277448022,-460.0,0.00023013,6]
[366475291,1750277448032,-460.0,0.00023013,6]
[366475292,1750277448043,-768.84,0.00023013,6]
[366475293,1750277448052,-460.0,0.00023013,6]
[366475294,1750277448062,-460.0,0.00023013,6]
[366475295,1750277448072,-460.0,0.00023013,6]
[366475296,1750277448081,-460.0,0.00023013,6]
[366475297,1750277448091,-460.0,0.00023013,6]
[366475298,1750277448100,-1836.8,0.00023013,6]
[366475299,1750277448109,-543.96,0.00023013,6]
[366475300,1750277448119,-460.0,0.00023013,6]
[366475301,1750277448129,-460.0,0.00023013,6]
[366475302,1750277448138,-3256.24,0.00023013,6]
[366475303,1750277448148,-1069.05,0.00023013,6]
[366475304,1750277448157,-563.58,0.00023013,6]
[366475305,1750277448167,-2548.56,0.00023013,6]
[366475306,1750277448177,-460.0,0.00023013,6]
[366475307,1750277448186,-460.0,0.00023013,6]
[366475308,1750277448195,-327.06,0.00023013,6]
[366475309,1750277448205,-1472.75,0.00023013,6]
[366475310,1750277448215,-1218.86,0.00023013,6]
[366475311,1750277448224,-202.98412717,0.00023013,6]
[366475312,1750277448233,-500.0,0.00023013,6]
[366475313,1750277448243,-460.0,0.00023013,6]
[366475314,1750277448252,-460.0,0.00023013,6]
[366475315,1750277448261,-460.0,0.00023013,6]
[366475316,1750277448271,-460.0,0.00023013,6]
[366475317,1750277448280,-515.5,0.00023013,6]
[366475318,1750277448289,-460.0,0.00023013,6]
[366475319,1750277448298,-460.0,0.00023013,6]
[366475320,1750277448308,-460.0,0.00023013,6]
[366475321,1750277448317,-939.38,0.00023013,6]
[366475322,1750277448327,-460.0,0.00023013,6]
[366475323,1750277448336,-460.0,0.00023013,6]
[366475324,1750277448345,-460.0,0.00023013,6]
[366475325,1750277448354,-460.0,0.00023013,6]
[366475326,1750277448363,-460.0,0.00023013,6]
[366475327,1750277448373,-452.32726583,0.00023013,6]
[366475328,1750277448383,-1762.07,0.00023013,6]
[366475329,1750277448392,-460.0,0.00023013,6]
[366475330,1750277448401,-536.63,0.00023013,6]
[366475331,1750277448410,-1261.69,0.00023013,6]
[366475332,1750277448420,-460.0,0.00023013,6]
[366475333,1750277448429,-460.0,0.00023013,6]
[366475334,1750277448438,-1399.88,0.00023013,6]
[366475335,1750277448447,-877.75,0.00023013,6]
[366475336,1750277448457,-650.18,0.00023013,6]
[366475337,1750277448467,-460.0,0.00023013,6]
[366475338,1750277448476,-460.0,0.00023013,6]
[366475339,1750277448486,-329.37059374,0.00023013,6]
[366475340,1750277448496,-1574.72,0.00023013,6]
[366475341,1750277448505,-502.38,0.00023013,6]
[366475342,1750277448514,-460.0,0.00023013,6]
[366475343,1750277448524,-460.0,0.00023013,6]
[366475344,1750277448534,-460.0,0.00023013,6]
[366475345,1750277448544,-4445.37,0.00023013,6]
[366475346,1750277448554,-513.03,0.00023013,6]
[366475347,1750277448564,-1301.27,0.00023013,6]
[366475348,1750277448573,-709.25,0.00023013,6]
[366475349,1750277448583,-420.0,0.00023013,6]
[366475350,1750277448593,-2096.89,0.00023013,6]
[366475351,1750277448603,-3156.43,0.00023013,6]
[366475352,1750277448613,-460.0,0.00023013,6]
[366475353,1750277448623,-513.82596414,0.00023021,2]
[366475354,1750277448632,-792.2856793,0.00023021,2]
[366475355,1750277448645,-150.18257212,0.00023021,2]
[366475356,1750277448655,-501.06245016,0.00023021,2]
[366475357,1750277448664,-1000.0,0.00023021,2]
[366475358,1750277448674,-500.0,0.00023021,2]
[366475359,1750277448683,-1009.52386993,0.00023021,2]
[366475360,1750277448692,-321001.32334315,0.00023054,2]
[366475361,1750277448702,-151.0,0.00023068,6]
[366475362,1750277448712,-497.0,0.00023068,6]
[366475363,1750277448721,-151.0,0.00023068,6]
[366475364,1750277448731,-151.0,0.00023068,6]
[366475365,1750277448739,-151.0,0.00023068,6]
[366475366,1750277448748,-151.0,0.00023068,6]
[366475367,1750277448757,-151.0,0.00023068,6]
[366475368,1750277448769,-151.0,0.00023068,6]
[366475369,1750277448780,-500.0,0.00023068,6]
[366475370,1750277448789,-151.0,0.00023068,6]
[366475371,1750277448798,-502.19345932,0.00023073,2]
[366475372,1750277448808,-500.0,0.00023073,2]
[366475373,1750277448817,-500.0,0.00023073,2]
[366475374,1750277448826,-500.0,0.00023073,2]
[366475375,1750277448836,-500.0,0.00023073,2]
[366475376,1750277448844,-500.0,0.00023073,2]
[366475377,1750277448855,-500.0,0.00023073,2]
[366475378,1750277448864,-500.0,0.00023073,2]
[366475379,1750277448874,-500.0,0.00023073,2]
[366475380,1750277448884,-502.62722475,0.00023073,2]
[366475381,1750277448893,-600.0,0.00023073,2]
[366475382,1750277448903,-171.93704771,0.00023073,2]
[366475383,1750277448912,-500.0,0.00023073,2]
[366475384,1750277448922,-500.0,0.00023073,2]
[366475385,1750277448932,-335.88837023,0.00023073,2]
[366475386,1750277448941,-516.93256002,0.00023073,2]
[366475387,1750277448950,-636.55493512,0.00023073,2]
[366475388,1750277448960,-336.9302654,0.00023073,2]
[366475389,1750277448969,-160.0,0.00023088,2]
[366475390,1750277448978,-151.0,0.00023095,6]
[366475391,1750277448988,-497.0,0.00023095,6]
[366475392,1750277448998,-151.0,0.00023095,6]
[366475393,1750277449007,-151.0,0.00023095,6]
[366475394,1750277449017,-151.0,0.00023095,6]
[366475395,1750277449026,-198.0,0.00023095,6]
[366475396,1750277449035,-500.0,0.00023095,6]
[366475397,1750277449044,-151.0,0.00023095,6]
[366475398,1750277449054,-82816.0,0.000231,7]
[366475399,1750277449063,-2351.0,0.00023101,2]
[366475400,1750277449073,-857.80989735,0.00023122,2]
[366475401,1750277449082,-151.0,0.00023123,6]
[366475402,1750277449091,-497.0,0.00023123,6]
[366475403,1750277449100,-198.83773021,0.00023123,6]
[366475404,1750277449110,-151.0,0.00023123,6]
[366475405,1750277449119,-500.0,0.00023123,6]
[366475406,1750277449129,-151.0,0.00023123,6]
[366475407,1750277449138,-151.0,0.0002315,6]
[366475408,1750277449149,-497.0,0.0002315,6]
[366475409,1750277449159,-151.0,0.0002315,6]
[366475410,1750277449169,-151.0,0.0002315,6]
[366475411,1750277449179,-429.17624786,0.00023158,2]
[366475412,1750277449188,-151.0,0.00023178,6]
[366475413,1750277449197,-497.0,0.00023178,6]
[366475414,1750277449208,-151.0,0.00023178,6]
[366475415,1750277449218,-151.0,0.00023178,6]
[366475416,1750277449226,-577.45,0.000232,7]
[366475417,1750277449236,-243.70160215,0.00023205,6]
[366475418,1750277449246,-497.0,0.00023205,6]
[366475419,1750277449255,-245.0,0.00023205,6]
[366475420,1750277449265,-151.0,0.00023205,6]
[366475421,1750277449275,-497.0,0.00023232,6]
[366475422,1750277449284,-1667.08,0.00023259,3]
[366475423,1750277449294,-833.54,0.00023259,3]
[366475424,1750277449304,-497.0,0.0002326,6]
[366475425,1750277449313,-416.78,0.00023277,3]
[366475426,1750277449322,-460.0,0.00023287,6]
[366475427,1750277449332,-460.0,0.00023287,6]